bitfinex-derivatives/quotes_BTCF0:USTF0_20251111
["timestamp","ask_amount","ask_price","bid_price","bid_amount"]
[1762897835007,0.99348245,102570.0,102560.0,0.1553784]
[1762897835207,0.8348596,102570.0,102560.0,0.31400125]
[1762897835402,0.3647307,102570.0,102560.0,0.4726241]
[1762897835608,0.7372507,102570.0,102560.0,0.31400125]
[1762897835906,0.4622596,102570.0,102560.0,0.31400125]
[1762897836106,0.3647307,102570.0,102560.0,0.31400125]
[1762897836297,0.4622596,102570.0,102560.0,0.31400125]
[1762897836703,0.62088245,102570.0,102560.0,0.21646285]
[1762897836899,0.62088245,102570.0,102560.0,0.001]
[1762897837106,0.99336985,102570.0,102560.0,0.17357285]
[1762897837304,0.99336985,102570.0,102560.0,0.19539285]
[1762897837900,0.99336985,102570.0,102560.0,0.03677]
[1762897839006,0.3647307,102570.0,102560.0,0.8451241]
[1762897839305,0.4622596,102570.0,102560.0,0.21648285]
[1762897839503,0.4622596,102570.0,102560.0,0.68662125]
[1762897839696,0.62088245,102570.0,102560.0,0.21648285]
[1762897839901,0.62088245,102570.0,102560.0,0.05786]
[1762897840403,0.62088245,102570.0,102560.0,0.03677]
[1762897840709,0.62088245,102570.0,102560.0,0.21648285]
[1762897841313,0.62088245,102570.0,102560.0,0.19539285]
[1762897841508,0.62088245,102570.0,102560.0,0.03677]
[1762897841713,0.4622596,102570.0,102560.0,0.03677]
[1762897841915,0.62088245,102570.0,102560.0,0.03677]
[1762897843718,0.62088245,102570.0,102560.0,0.29293125]
[1762897843906,0.62088245,102570.0,102560.0,0.31402125]
[1762897845310,0.62088245,102570.0,102560.0,0.21648285]
[1762897845510,0.62088245,102570.0,102560.0,0.31402125]
[1762897846015,0.62088245,102570.0,102560.0,0.03677]
[1762897846216,0.62088245,102570.0,102560.0,0.31402125]
[1762897846515,0.62088245,102570.0,102560.0,0.21648285]
[1762897847311,0.62088245,102570.0,102560.0,0.31402125]
[1762897847516,0.62088245,102570.0,102560.0,0.21648285]
[1762897848319,0.62088245,102570.0,102560.0,0.31402125]
[1762897848721,0.64280961,102570.0,102560.0,0.31402125]
[1762897849112,0.64280961,102570.0,102560.0,0.21648285]
[1762897849419,1.01516961,102570.0,102560.0,0.05786]
[1762897849618,1.01516961,102570.0,102560.0,0.001]
[1762897851517,1.01516961,102570.0,102560.0,0.01452]
[1762897851822,1.01516961,102570.0,102560.0,0.1347584]
[1762897852919,0.0975384,102560.0,102550.0,0.03677598]
[1762897853111,0.99143928,102560.0,102550.0,0.05807598]
[1762897853716,0.61915928,102560.0,102550.0,0.15562388]
[1762897854116,0.61915928,102560.0,102550.0,0.05907598]
[1762897854322,0.99167928,102560.0,102550.0,0.05907598]
[1762897854522,0.99167928,102560.0,102550.0,0.31524673]
[1762897855221,0.99167928,102560.0,102550.0,0.21769883]
[1762897855618,0.99167928,102560.0,102550.0,0.05907598]
[1762897855823,0.83305643,102560.0,102550.0,0.05907598]
[1762897856019,0.61915928,102560.0,102550.0,0.21769883]
[1762897856225,0.99159928,102560.0,102550.0,0.21769883]
[1762897856624,0.99159928,102560.0,102550.0,0.05907598]
[1762897856822,0.99159928,102560.0,102550.0,0.21769883]
[1762897857220,0.99159928,102560.0,102550.0,0.05907598]
[1762897857420,0.99159928,102560.0,102550.0,0.21769883]
[1762897857721,0.61915928,102560.0,102550.0,0.21769883]
[1762897857917,0.99159928,102560.0,102550.0,0.21769883]
[1762897858217,1.01351403,102560.0,102550.0,0.21769883]
[1762897858421,1.01351403,102560.0,102550.0,0.05907598]
[1762897858829,0.64113812,102560.0,102550.0,0.05907598]
[1762897859030,1.01353812,102560.0,102550.0,0.05907598]
[1762897859223,1.01349812,102560.0,102550.0,0.05907598]
[1762897860629,0.64113812,102560.0,102550.0,0.05907598]
[1762897861024,1.01341812,102560.0,102550.0,0.05907598]
[1762897863224,1.01345812,102560.0,102550.0,0.05907598]
[1762897864629,0.64113812,102560.0,102550.0,0.05907598]
[1762897864829,1.01329812,102560.0,102550.0,0.05907598]
[1762897865633,0.85465118,102560.0,102550.0,0.15662388]
[1762897865835,0.48249118,102560.0,102550.0,0.31527082]
[1762897866027,0.85469118,102560.0,102550.0,0.31527082]
[1762897866431,0.48249118,102560.0,102550.0,0.15662388]
[1762897866633,0.85469118,102560.0,102550.0,0.15662388]
[1762897868134,0.85469118,102560.0,102550.0,0.05907598]
[1762897868846,0.85461118,102560.0,102550.0,0.15662388]
[1762897871340,0.48249118,102560.0,102550.0,0.15662388]
[1762897871543,0.85453118,102560.0,102550.0,0.15662388]
[1762897872340,0.85453118,102560.0,102550.0,0.05907598]
[1762897872540,0.48249118,102560.0,102550.0,0.05907598]
[1762897872741,0.85449118,102560.0,102550.0,0.05907598]
[1762897873639,0.48249118,102560.0,102550.0,0.05907598]
[1762897873947,1.01313812,102560.0,102550.0,0.15662388]
[1762897874356,0.85449118,102560.0,102550.0,0.05907598]
[1762897874642,1.01313812,102560.0,102550.0,0.05907598]
[1762897874850,1.01321812,102560.0,102550.0,0.05907598]
[1762897875048,1.01321812,102560.0,102550.0,0.03777598]
[1762897875248,0.64113812,102560.0,102550.0,0.03777598]
[1762897875449,1.01321812,102560.0,102550.0,0.03777598]
[1762897876040,1.01321812,102560.0,102550.0,0.01507598]
[1762897876241,0.64113812,102560.0,102550.0,0.01507598]
[1762897876442,1.01317812,102560.0,102550.0,0.01507598]
[1762897876646,0.64113812,102560.0,102550.0,0.05901598]
[1762897877149,1.01313812,102560.0,102550.0,0.05901598]
[1762897877845,1.01313812,102560.0,102550.0,0.00114598]
[1762897878052,0.64113812,102560.0,102550.0,0.00114598]
[1762897878345,1.01309812,102560.0,102550.0,0.05802598]
[1762897878553,1.01309812,102560.0,102550.0,0.15557388]
[1762897879251,0.85445118,102560.0,102550.0,0.15557388]
[1762897879547,0.48249118,102560.0,102550.0,0.15557388]
[1762897879849,0.85445118,102560.0,102550.0,0.15557388]
[1762897880050,0.48249118,102560.0,102550.0,0.15557388]
[1762897880241,0.85441118,102560.0,102550.0,0.15557388]
[1762897881250,0.85445118,102560.0,102550.0,0.15557388]
[1762897882247,0.48249118,102560.0,102550.0,0.15557388]
[1762897882449,0.85437118,102560.0,102550.0,0.15557388]
[1762897882649,0.85437118,102560.0,102550.0,0.05802598]
[1762897883760,0.85437118,102560.0,102550.0,0.15557388]
[1762897884358,0.85433118,102560.0,102550.0,0.15557388]
[1762897885362,0.48249118,102560.0,102550.0,0.15557388]
[1762897885564,0.85429118,102560.0,102550.0,0.15557388]
[1762897886254,0.48249118,102560.0,102550.0,0.15557388]
[1762897886454,0.85425118,102560.0,102550.0,0.15557388]
[1762897887058,0.85425118,102560.0,102550.0,0.05802598]
[1762897887462,0.85425118,102560.0,102550.0,0.15557388]
[1762897887657,0.85425118,102560.0,102550.0,0.05802598]
[1762897887856,0.85421118,102560.0,102550.0,0.05802598]
[1762897888256,0.48249118,102560.0,102550.0,0.05802598]
[1762897888553,0.85421118,102560.0,102550.0,0.05802598]
[1762897888962,1.01285812,102560.0,102550.0,0.15557388]
[1762897889161,0.64113812,102560.0,102550.0,0.15557388]
[1762897889553,1.01281812,102560.0,102550.0,0.15557388]
[1762897889860,0.85417118,102560.0,102550.0,0.15557388]
[1762897890262,0.48249118,102560.0,102550.0,0.15557388]
[1762897890456,0.48249118,102560.0,102550.0,0.05873598]
[1762897890656,0.85413118,102560.0,102550.0,0.15628388]
[1762897890969,0.85413118,102560.0,102550.0,0.05873598]
[1762897891265,1.01277812,102560.0,102550.0,0.05873598]
[1762897892668,0.48249118,102560.0,102550.0,0.05873598]
[1762897892963,1.01273812,102560.0,102550.0,0.01382598]
[1762897893261,1.01273812,102560.0,102550.0,0.03632598]
[1762897893762,1.01273812,102560.0,102550.0,0.01382598]
[1762897893963,0.85409118,102560.0,102550.0,0.05873598]
[1762897894259,0.64113812,102560.0,102550.0,0.05873598]
[1762897894647,1.01269812,102560.0,102550.0,0.05873598]
[1762897895260,1.01269812,102560.0,102550.0,0.03632598]
[1762897895566,0.64113812,102560.0,102550.0,0.03632598]
[1762897895766,1.01269812,102560.0,102550.0,0.03632598]
[1762897895961,1.01269812,102560.0,102550.0,0.05873598]
[1762897896263,0.64113812,102560.0,102550.0,0.01382598]
[1762897896461,1.01265812,102560.0,102550.0,0.05873598]
[1762897897266,0.64213812,102560.0,102550.0,0.05773598]
[1762897897463,1.01361812,102560.0,102550.0,0.05773598]
[1762897898365,0.64213812,102560.0,102550.0,0.05773598]
[1762897898665,1.01357812,102560.0,102550.0,0.05773598]
[1762897898866,1.01457812,102560.0,102550.0,0.05773598]
[1762897900359,0.64313812,102560.0,102550.0,0.05773598]
[1762897900669,0.85589118,102560.0,102550.0,0.05773598]
[1762897900867,1.01453812,102560.0,102550.0,0.05773598]
[1762897901767,0.85589118,102560.0,102550.0,0.05773598]
[1762897901957,1.01453812,102560.0,102550.0,0.05773598]
[1762897902567,0.85589118,102560.0,102550.0,0.15528398]
[1762897902766,0.85585118,102560.0,102550.0,0.15528398]
[1762897902961,0.85589118,102560.0,102550.0,0.15528398]
[1762897904973,0.85589118,102560.0,102550.0,0.05773598]
[1762897905458,1.01453812,102560.0,102550.0,0.05773598]
[1762897906860,1.01453812,102560.0,102550.0,0.15528398]
[1762897907467,0.85589118,102560.0,102550.0,0.15528398]
[1762897907871,1.01453812,102560.0,102550.0,0.05773598]
[1762897908172,1.01445812,102560.0,102550.0,0.05773598]
[1762897908467,0.64313812,102560.0,102550.0,0.05773598]
[1762897908669,1.01445812,102560.0,102550.0,0.05773598]
[1762897910173,0.85581118,102560.0,102550.0,0.05773598]
[1762897910465,1.01445812,102560.0,102550.0,0.05773598]
[1762897911668,0.64313812,102560.0,102550.0,0.05773598]
[1762897912068,1.01445812,102560.0,102550.0,0.05773598]
[1762897912374,0.64313812,102560.0,102550.0,0.05773598]
[1762897912558,1.01445812,102560.0,102550.0,0.05773598]
[1762897913069,0.85581118,102560.0,102550.0,0.05773598]
[1762897913268,1.01445812,102560.0,102550.0,0.05773598]
[1762897913669,0.64313812,102560.0,102550.0,0.05773598]
[1762897913870,1.01445812,102560.0,102550.0,0.05773598]
[1762897914277,0.48449118,102560.0,102550.0,0.05773598]
[1762897914476,0.85581118,102560.0,102550.0,0.05773598]
[1762897914674,1.01445812,102560.0,102550.0,0.05773598]
[1762897914884,0.64313812,102560.0,102550.0,0.05773598]
[1762897915073,0.48449118,102560.0,102550.0,0.05773598]
[1762897915266,0.64313812,102560.0,102550.0,0.05773598]
[1762897915471,1.01445812,102560.0,102550.0,0.05773598]
[1762897917282,0.64313812,102560.0,102550.0,0.05773598]
[1762897917580,1.01445812,102560.0,102550.0,0.05773598]
[1762897917775,0.64313812,102560.0,102550.0,0.05773598]
[1762897917980,0.85581118,102560.0,102550.0,0.05773598]
[1762897918170,0.48449118,102560.0,102550.0,0.05773598]
[1762897918371,0.85581118,102560.0,102550.0,0.05773598]
[1762897918677,0.64313812,102560.0,102550.0,0.05773598]
[1762897918879,1.0144522,102560.0,102550.0,0.216377]
[1762897919079,0.85581118,102560.0,102550.0,0.216377]
[1762897919276,0.6431322,102560.0,102550.0,0.05773598]
[1762897919476,1.0144522,102560.0,102550.0,0.05773598]
[1762897921277,0.6431322,102560.0,102550.0,0.313925]
[1762897921471,1.0144522,102560.0,102550.0,0.15528398]
[1762897921977,0.80177322,102560.0,102550.0,0.05773598]
[1762897922179,1.17309322,102560.0,102550.0,0.05773598]
[1762897922483,0.85581118,102560.0,102550.0,0.05773598]
[1762897922674,0.80177322,102560.0,102550.0,0.05773598]
[1762897923076,1.17309322,102560.0,102550.0,0.05773598]
[1762897925267,0.80177322,102560.0,102550.0,0.05773598]
[1762897925876,1.17309322,102560.0,102550.0,0.05773598]
[1762897927583,0.85581118,102560.0,102550.0,0.05773598]
[1762897927784,0.80177322,102560.0,102550.0,0.15528398]
[1762897927974,1.17309322,102560.0,102550.0,0.05773598]
[1762897928374,1.17309322,102560.0,102550.0,0.15528398]
[1762897928570,1.0144522,102560.0,102550.0,0.15528398]
[1762897928776,1.17309322,102560.0,102550.0,0.15528398]
[1762897930483,0.6431322,102560.0,102550.0,0.15528398]
[1762897930683,1.0144522,102560.0,102550.0,0.15528398]
[1762897931683,1.0144522,102560.0,102550.0,0.05773598]
[1762897931885,1.0144522,102560.0,102550.0,0.216377]
[1762897932284,1.0144522,102560.0,102550.0,0.313925]
[1762897933484,1.0144522,102560.0,102550.0,0.15528398]
[1762897933685,1.0144522,102560.0,102550.0,0.313925]
[1762897934786,1.0144522,102560.0,102550.0,0.05773598]
[1762897935086,0.85581118,102560.0,102550.0,0.05773598]
[1762897935285,0.80177322,102560.0,102550.0,0.05773598]
[1762897935586,1.17305322,102560.0,102550.0,0.05773598]
[1762897935787,0.80177322,102560.0,102550.0,0.05773598]
[1762897935988,1.17305322,102560.0,102550.0,0.05773598]
[1762897936589,0.6431322,102560.0,102550.0,0.15528398]
[1762897936888,1.0144122,102560.0,102550.0,0.15528398]
[1762897939492,1.0144122,102560.0,102550.0,0.05773598]
[1762897940693,1.0144122,102560.0,102550.0,0.313925]
[1762897941393,1.0144122,102560.0,102550.0,0.15528398]
[1762897941594,1.0144122,102560.0,102550.0,0.313925]
[1762897942987,0.85577118,102560.0,102550.0,0.313925]
[1762897943285,1.0144122,102560.0,102550.0,0.313925]
[1762897943485,0.85577118,102560.0,102550.0,0.313925]
[1762897943685,1.0144122,102560.0,102550.0,0.313925]
[1762897943881,1.0144122,102560.0,102550.0,0.15528398]
[1762897945097,1.0144122,102560.0,102550.0,0.05773598]
[1762897945898,1.17305322,102560.0,102550.0,0.05773598]
[1762897947890,1.17305322,102560.0,102550.0,0.15528398]
[1762897948090,1.17305322,102560.0,102550.0,0.05773598]
[1762897948691,1.17305322,102560.0,102550.0,0.15528398]
[1762897948888,1.17305322,102560.0,102550.0,0.05773598]
[1762897949091,1.17305322,102560.0,102550.0,0.15528398]
[1762897949401,0.85577118,102560.0,102550.0,0.15528398]
[1762897949701,1.17305322,102560.0,102550.0,0.15528398]
[1762897950697,1.17305322,102560.0,102550.0,0.05773598]
[1762897950698,1.0144122,102560.0,102550.0,0.05773598]
[1762897950901,1.17305322,102560.0,102550.0,0.05773598]
[1762897951293,0.75823278,102560.0,102550.0,0.05773598]
[1762897951604,1.0143723,102560.0,102550.0,0.313925]
[1762897952101,1.01447176,102560.0,102550.0,0.313925]
[1762897953104,1.01447176,102560.0,102550.0,0.216377]
[1762897953307,1.01447176,102560.0,102550.0,0.313925]
[1762897954498,1.01447176,102560.0,102550.0,0.15528398]
[1762897954711,0.85583074,102560.0,102550.0,0.313925]
[1762897954906,0.75829224,102560.0,102550.0,0.313925]
[1762897955105,0.38705224,102560.0,102550.0,0.313925]
[1762897955303,0.48459074,102560.0,102550.0,0.313925]
[1762897955499,0.64323176,102560.0,102550.0,0.216377]
[1762897955701,0.64323176,102560.0,102550.0,0.313925]
[1762897956098,0.38705224,102560.0,102550.0,0.313925]
[1762897959407,0.38705224,102560.0,102550.0,0.15528398]
[1762897959607,0.38705224,102560.0,102550.0,0.313925]
[1762897962006,0.48459074,102560.0,102550.0,0.313925]
[1762897962409,0.38705224,102560.0,102550.0,0.313925]
[1762897963305,0.3628,102560.0,102550.0,0.313925]
[1762897963493,0.002,102560.0,102550.0,0.78636449]
[1762897963699,0.3608,102570.0,102560.0,0.1556985]
[1762897963898,0.36299803,102570.0,102560.0,0.84418054]
[1762897964801,0.36499803,102570.0,102560.0,0.84418054]
[1762897965006,0.36499803,102570.0,102560.0,0.5268985]
[1762897965305,0.36499803,102570.0,102560.0,0.84418054]
[1762897965506,0.46252703,102570.0,102560.0,0.84418054]
[1762897966008,0.46452703,102570.0,102560.0,0.84418054]
[1762897966505,0.36699803,102570.0,102560.0,0.84418054]
[1762897967809,0.46452713,102570.0,102560.0,0.84418054]
[1762897968209,0.36699803,102570.0,102560.0,0.84418054]
[1762897968404,0.36699803,102570.0,102560.0,0.47298054]
[1762897971610,0.3648,102570.0,102560.0,0.71674054]
[1762897971815,0.004,102570.0,102560.0,0.71674054]
[1762897972312,0.36094598,102580.0,102570.0,0.1535691]
[1762897972514,0.00014598,102580.0,102570.0,0.84197114]
[1762897972701,0.00014598,102580.0,102570.0,0.92705012]
[1762897972903,0.00014598,102580.0,102570.0,1.08569114]
[1762897973101,0.00014598,102580.0,102570.0,0.84197114]
[1762897973311,0.36094598,102580.0,102570.0,0.92705012]
[1762897973499,0.36314401,102580.0,102570.0,0.68333012]
[1762897973705,0.36194598,102580.0,102570.0,0.84197114]
[1762897973906,0.36294598,102580.0,102570.0,1.08569114]
[1762897974105,0.3608,102620.0,102600.0,0.1080506]
[1762897974316,0.40412,102620.0,102610.0,0.47301117]
[1762897974504,0.04332,102620.0,102610.0,0.47301117]
[1762897974706,0.04332,102630.0,102620.0,0.1535216]
[1762897974905,0.04405267,102630.0,102620.0,0.47300167]
[1762897975110,0.41517267,102630.0,102620.0,0.83380167]
[1762897975312,0.41517267,102630.0,102620.0,0.47300167]
[1762897975704,0.04405267,102630.0,102620.0,0.83380167]
[1762897975903,0.41517267,102630.0,102620.0,0.83380167]
[1762897976507,0.02268267,102630.0,102620.0,0.83380167]
[1762897976708,0.02195,102630.0,102620.0,0.83380167]
[1762897977112,0.02195,102630.0,102620.0,0.83580167]
[1762897977313,0.39303,102630.0,102620.0,0.83580167]
[1762897977509,0.02209598,102640.0,102630.0,0.1535121]
[1762897977709,0.00014598,102640.0,102630.0,0.83379217]
[1762897977915,0.00014598,102640.0,102630.0,1.07739217]
[1762897978513,0.37475,102660.0,102650.0,0.1532531]
[1762897978514,0.77531,102660.0,102650.0,0.1532531]
[1762897978714,0.04347,102660.0,102650.0,0.67489215]
[1762897979009,0.04347,102660.0,102650.0,0.67453734]
[1762897979010,0.41451,102660.0,102650.0,0.67453734]
[1762897980011,0.41524267,102660.0,102650.0,0.67453734]
[1762897980413,0.04420267,102660.0,102650.0,0.67453734]
[1762897980614,0.41520267,102660.0,102650.0,0.67453734]
[1762897980809,0.04420267,102660.0,102650.0,0.51625113]
[1762897981117,0.51264627,102660.0,102650.0,0.67453734]
[1762897981319,0.41520267,102660.0,102650.0,0.67453734]
[1762897981715,0.37489598,102670.0,102660.0,0.1543236]
[1762897981716,0.40441598,102670.0,102660.0,0.1543236]
[1762897981912,0.77610865,102670.0,102660.0,0.31480784]
[1762897982307,0.02259865,102670.0,102660.0,0.67560784]
[1762897982612,0.00014598,102670.0,102660.0,0.83389405]
[1762897982925,0.00114598,102670.0,102660.0,1.07741405]
[1762897983415,0.00214598,102670.0,102660.0,1.07741405]
[1762897983615,0.51782275,102670.0,102660.0,0.02466803]
[1762897983913,0.69786163,102670.0,102660.0,0.00219803]
[1762897984512,0.1477531,102650.0,102640.0,0.04408598]
[1762897984715,0.88164577,102650.0,102640.0,0.04628401]
[1762897984910,0.88164577,102650.0,102640.0,0.00234401]
[1762897985110,1.03993198,102650.0,102640.0,0.00234401]
[1762897985311,1.40073198,102650.0,102640.0,0.00234401]
[1762897985716,0.87008577,102650.0,102640.0,0.31697282]
[1762897986019,0.88156577,102650.0,102640.0,0.21951022]
[1762897986221,0.88156577,102650.0,102640.0,0.00434401]
[1762897987022,0.88456577,102650.0,102640.0,0.02681401]
[1762897987221,0.88456577,102650.0,102640.0,0.00234401]
[1762897987421,0.88456577,102650.0,102640.0,0.04628401]
[1762897987819,0.88456577,102650.0,102640.0,0.02481401]
[1762897988017,1.04485198,102650.0,102640.0,0.00234401]
[1762897988209,0.88656577,102650.0,102640.0,0.09980661]
[1762897988815,0.88656577,102650.0,102640.0,0.00234401]
[1762897989415,1.04485198,102650.0,102640.0,0.00014598]
[1762897989621,0.1541821,102630.0,102620.0,0.1199511]
[1762897989820,0.88791477,102630.0,102620.0,0.00219803]
[1762897990024,1.04620098,102630.0,102620.0,0.00219803]
[1762897990217,1.04620098,102630.0,102620.0,0.09967963]
[1762897990521,0.40500267,102630.0,102620.0,0.31002584]
[1762897990732,0.41640267,102630.0,102620.0,0.31002584]
[1762897991721,0.00014598,102640.0,102620.0,0.64835584]
[1762897991931,0.00014598,102640.0,102630.0,0.83172452]
[1762897992243,0.00683,102660.0,102650.0,0.1543331]
[1762897992244,0.41579,102660.0,102650.0,0.1543331]
[1762897992422,0.04420267,102660.0,102650.0,0.67561734]
[1762897992620,0.00073267,102660.0,102650.0,0.67561734]
[1762897992833,0.05671,102680.0,102670.0,0.1413741]
[1762897993025,0.05744267,102680.0,102670.0,0.51731213]
[1762897993328,0.41672267,102680.0,102670.0,0.76599198]
[1762897993522,0.41680267,102680.0,102670.0,0.76599198]
[1762897993924,0.41680267,102680.0,102670.0,0.51731213]
[1762897994326,0.40427,102720.0,102710.0,0.04394]
[1762897994523,0.41751,102720.0,102710.0,0.39221408]
[1762897994923,0.04347,102720.0,102710.0,0.75301408]
[1762897995127,0.04347,102720.0,102710.0,0.50433423]
[1762897995325,0.04347,102720.0,102710.0,0.75301408]
[1762897995536,0.77789598,102730.0,102720.0,0.1509167]
[1762897995738,0.40441598,102730.0,102720.0,0.15311473]
[1762897996027,0.41705598,102730.0,102720.0,0.15311473]
[1762897996232,0.00014598,102730.0,102720.0,0.76259458]
[1762897996830,0.00014598,102730.0,102720.0,1.00595458]
[1762897997033,0.00214598,102730.0,102720.0,0.76259458]
[1762897997428,0.00214598,102730.0,102720.0,1.37955458]
[1762897997630,0.00314598,102730.0,102720.0,1.37955458]
[1762897997823,0.00414598,102730.0,102720.0,1.37955458]
[1762897998023,0.77799,102750.0,102740.0,0.1521777]
[1762897998223,0.38252,102750.0,102740.0,0.40305558]
[1762897998432,0.02172,102750.0,102740.0,0.40305558]
[1762897999022,0.04347,102750.0,102740.0,0.40305558]
[1762897999226,0.04447,102750.0,102740.0,0.40305558]
[1762897999623,0.5026283,102750.0,102740.0,0.04613803]
[1762897999830,0.5036283,102750.0,102740.0,0.04613803]
[1762898000338,0.5036283,102750.0,102740.0,0.40572558]
[1762898000339,0.002,102750.0,102740.0,0.40572558]
[1762898000740,0.002,102750.0,102740.0,0.76652558]
[1762898000940,0.04666,102750.0,102740.0,0.76652558]
[1762898002037,0.002,102750.0,102740.0,0.76652558]
[1762898002241,0.83193558,102760.0,102750.0,0.1415983]
[1762898002242,0.00014598,102760.0,102750.0,0.1415983]
[1762898002444,0.00014598,102760.0,102750.0,0.99655618]
[1762898003034,0.00014598,102760.0,102750.0,0.75327618]
[1762898003541,0.00014598,102760.0,102750.0,0.99655618]
[1762898003847,0.00014598,102760.0,102750.0,0.99755618]
[1762898004144,0.00014598,102760.0,102750.0,0.75427618]
[1762898004538,0.02289598,102760.0,102750.0,1.12851618]
[1762898005238,0.00014598,102760.0,102750.0,1.37179618]
[1762898005741,0.00014598,102760.0,102750.0,1.12851618]
[1762898006049,0.36094598,102760.0,102750.0,0.63675618]
[1762898006232,0.36094598,102760.0,102750.0,0.04743803]
[1762898006233,0.40560598,102760.0,102750.0,0.04743803]
[1762898006437,0.51556478,102760.0,102750.0,0.04743803]
[1762898006744,0.51556478,102760.0,102750.0,0.00319803]
[1762898006938,0.76640598,102760.0,102750.0,0.04743803]
[1762898007131,0.86375478,102760.0,102750.0,0.29611788]
[1762898007338,0.87636478,102760.0,102750.0,0.00319803]
[1762898007841,0.87636478,102760.0,102750.0,0.001]
[1762898008246,0.1420278,102740.0,102730.0,0.14176228]
[1762898008431,0.8756071,102740.0,102730.0,0.00234401]
[1762898008633,0.8629971,102740.0,102730.0,0.02396401]
[1762898009137,0.3608,102740.0,102730.0,0.39264106]
[1762898009547,0.5028278,102740.0,102730.0,0.04658401]
[1762898009747,0.5028278,102740.0,102730.0,0.14696121]
[1762898010550,0.75875,102740.0,102730.0,0.14396121]
[1762898011260,0.38455,102740.0,102730.0,0.14396121]
[1762898011437,0.8560378,102740.0,102730.0,0.14396121]
[1762898011637,0.78058,102740.0,102730.0,0.14396121]
[1762898011839,0.8779478,102740.0,102730.0,0.14396121]
[1762898012555,0.8779478,102740.0,102730.0,0.04658401]
[1762898012938,0.36094598,102760.0,102750.0,0.1415983]
[1762898013246,0.41821598,102760.0,102750.0,0.04643803]
[1762898013549,0.41821598,102760.0,102750.0,0.14379633]
[1762898014139,0.79349598,102760.0,102750.0,0.14479633]
[1762898014358,0.79349598,102760.0,102750.0,0.39347618]
[1762898014545,0.43269598,102760.0,102750.0,0.75427618]
[1762898014749,0.00014598,102760.0,102750.0,0.99755618]
[1762898015250,0.00014598,102760.0,102750.0,0.99855618]
[1762898015643,0.04480598,102760.0,102750.0,0.50659633]
[1762898015942,0.04480598,102760.0,102750.0,0.75527618]
[1762898016147,0.04480598,102760.0,102750.0,0.75427618]
[1762898016546,0.37542598,102760.0,102750.0,0.99755618]
[1762898016748,0.35205152,102760.0,102750.0,0.75427618]
[1762898016939,0.35205152,102760.0,102750.0,0.99755618]
[1762898017252,0.5153999,102780.0,102770.0,0.1189593]
[1762898017451,0.8905599,102780.0,102770.0,0.12115733]
[1762898017748,0.05727,102780.0,102770.0,0.14377733]
[1762898017951,0.43239,102780.0,102770.0,0.14377733]
[1762898018248,0.43239,102780.0,102770.0,0.39245718]
[1762898018643,0.43235,102780.0,102770.0,0.39245718]
[1762898018951,0.43231,102780.0,102770.0,0.39245718]
[1762898019750,0.43331,102780.0,102770.0,0.39245718]
[1762898021548,0.5306399,102780.0,102770.0,0.39245718]
[1762898021943,0.1555999,102780.0,102770.0,0.39245718]
[1762898022249,0.43307,102780.0,102770.0,0.39245718]
[1762898023754,0.5303998,102780.0,102770.0,0.29511788]
[1762898024051,0.5303998,102780.0,102770.0,0.04643803]
[1762898024253,0.5303998,102780.0,102770.0,0.02381803]
[1762898024758,0.51947666,102780.0,102770.0,0.12115733]
[1762898024946,0.88027666,102780.0,102770.0,0.02381803]
[1762898025244,0.88027666,102780.0,102770.0,0.10053733]
[1762898025453,0.88027666,102780.0,102770.0,0.14477733]
[1762898025654,0.78194686,102780.0,102770.0,0.14477733]
[1762898025950,0.87927666,102780.0,102770.0,0.14477733]
[1762898026554,0.78194686,102780.0,102770.0,0.39345718]
[1762898027253,0.87927666,102780.0,102770.0,0.39345718]
[1762898027450,0.0548957,102780.0,102770.0,0.40699718]
[1762898027652,0.4293757,102780.0,102770.0,0.40699718]
[1762898027853,0.4419857,102780.0,102770.0,0.39345718]
[1762898028150,0.4419457,102780.0,102770.0,0.14477733]
[1762898028541,0.4419457,102780.0,102770.0,0.39345718]
[1762898029451,0.5392755,102780.0,102770.0,0.39345718]
[1762898030156,0.9000755,102780.0,102770.0,0.29611788]
[1762898030354,0.9000755,102780.0,102770.0,0.39345718]
[1762898031059,0.8027457,102780.0,102770.0,0.39345718]
[1762898031453,0.9000756,102780.0,102770.0,0.39345718]
[1762898031646,0.9000756,102780.0,102770.0,0.25187788]
[1762898031857,0.9000756,102780.0,102770.0,0.00319803]
[1762898032059,0.9000756,102780.0,102760.0,0.00014598]
[1762898032060,0.1551093,102770.0,102760.0,0.00014598]
[1762898032251,0.50184487,102770.0,102760.0,0.00234401]
[1762898032558,0.87608487,102770.0,102760.0,0.00234401]
[1762898032863,0.91114814,102770.0,102760.0,0.00234401]
[1762898033253,0.53690814,102770.0,102760.0,0.00234401]
[1762898033454,0.91122814,102770.0,102760.0,0.00234401]
[1762898033656,0.53690814,102770.0,102760.0,0.00234401]
[1762898033851,0.91122814,102770.0,102760.0,0.00014598]
[1762898034045,0.91122814,102770.0,102760.0,0.00234401]
[1762898034455,0.53690814,102770.0,102760.0,0.00234401]
[1762898034653,0.91214814,102770.0,102760.0,0.00234401]
[1762898034854,0.53790814,102770.0,102760.0,0.00234401]
[1762898035052,0.91214814,102770.0,102760.0,0.00234401]
[1762898035861,0.91214814,102770.0,102760.0,0.00014598]
[1762898036162,0.0119,102750.0,102740.0,0.02104]
[1762898036356,0.1551377,102740.0,102730.0,0.65287985]
[1762898036552,0.1551377,102740.0,102730.0,0.40639803]
[1762898037058,0.5294177,102740.0,102730.0,0.14297113]
[1762898037269,0.1551377,102740.0,102730.0,0.14297113]
[1762898037660,0.1531377,102740.0,102730.0,0.29427788]
[1762898037862,0.43197,102740.0,102730.0,0.15487523]
[1762898038159,0.5293377,102740.0,102730.0,0.15687523]
[1762898038359,0.43197,102740.0,102730.0,0.40555508]
[1762898038652,0.43197,102740.0,102730.0,0.40755508]
[1762898038860,0.5293377,102740.0,102730.0,0.40755508]
[1762898039159,0.5293377,102740.0,102730.0,0.40655508]
[1762898039362,0.43197,102740.0,102730.0,0.40655508]
[1762898040355,0.43197,102740.0,102730.0,0.39465508]
[1762898040555,0.43197,102740.0,102730.0,0.40605508]
[1762898040959,0.43197,102740.0,102730.0,0.35493497]
[1762898042262,0.5293378,102740.0,102730.0,0.34353497]
[1762898042963,0.43197,102740.0,102730.0,0.35729497]
[1762898043262,0.5293378,102740.0,102730.0,0.35729497]
[1762898043659,0.5293378,102740.0,102730.0,0.34353497]
[1762898044360,0.04494,102740.0,102730.0,0.35493497]
[1762898044557,0.5164978,102740.0,102730.0,0.35493497]
[1762898044858,0.5296778,102740.0,102730.0,0.35493497]
[1762898045463,0.5296778,102740.0,102730.0,0.34353497]
[1762898046155,0.5296778,102740.0,102730.0,0.24615777]
[1762898046459,0.5296778,102740.0,102730.0,0.34353497]
[1762898046653,0.41913,102740.0,102730.0,0.35493497]
[1762898047355,0.04397598,102750.0,102740.0,0.1555578]
[1762898047555,0.41773598,102750.0,102740.0,0.71611557]
[1762898049360,0.43091598,102750.0,102740.0,0.71611557]
[1762898049571,0.04397598,102750.0,102740.0,0.71611557]
[1762898049864,0.41777598,102750.0,102740.0,0.71611557]